Workbook

Sheet Inleiding
D7: Voor het optimale werking van dit bestand, gelieve het eerst te downloaden alvorens gebruik.
D9: Deze simulator heeft tot doel bijkomende informatie te verschaffen aan de marktspelers met betrekking
D10: tot de toepassingsmodaliteiten van de tarieven voor toegang tot het net (*), de tarieven voor
D11: openbare dienstverplichtingen en de toeslagen. Wat niet beoogd wordt met dit programma:
D12: de aansluitingstarieven en de tarieven voor compensatie van kwartier-onevenwichten.
D14: Het simulatie-programma illustreert de berekening van de bedragen met betrekking tot de toegang tot
D15: het Elia-net door netgebruikers die hierop aangesloten zijn. Het houdt bovendien rekening met de regio
D16: waarbinnen het betrokken toegangspunt gesitueerd is, het infrastructuurniveau en het type toegangspunt.
D18: De tarieven zijn van toepassing van 1 januari 2021 tot 31 december 2021.
D20: De simulatie kan gehanteerd worden voor netgebruikers die direct aangesloten zijn op het Elia-net,
D21: met of zonder lokale productie in hetzelfde toegangspunt. De simulatie is niet bedoeld voor distributienetbeheerders.
D23: De simulatie is niet bedoeld voor offshore toegangspunten die zijn aangesloten op de MOG en toegangspunten uit het GD Luxemburg. Neem contact op met uw KAM als u een simulatie voor deze toegangspunten wilt ontvangen.
D25: Voor het bekomen van een simulatie dienen vooreerst de profielkarakteristieken van de toegang ingevoerd
D26: te worden in het blad “Gegevens”. De resultaten kunnen vervolgens bekeken worden op het blad
D27: “Resultaten I” (tarieven van toepassing op het betrokken toegangspunt) en “Resultaten II” (bedragen met
D28: betrekking tot de termen voor toegang tot het net, de openbare dienstverplichtingen en de toeslagen voor
D29: het betrokken toegangspunt).
D32: (*) Buiten het tarief voor bijkomende levering van reactieve energie en het tarief voor eventuele
D33: overschrijding van het ter beschikking gestelde vermogen.
D36: Disclaimer :
D38: Het hierboven weergegeven hulpmiddel en de daarin vervatte informatie en tarieven worden enkel
D39: meegedeeld voor informatieve doeleinden en beogen de berekening van de kostprijs voor toegang tot het
D40: net voor een gegeven toegangspunt voor een netgebruiker te vergemakkelijken. Echter, noch de
D41: opgegeven informatie en tarieven noch de berekende resultaten zijn van contractuele aard. Zij vormen
D42: geen aanbod tot het sluiten van een contract en kunnen Elia niet binden noch van Elia worden
D43: afgedwongen.
D45: ELIA verstrekt geen enkele garantie over het adequaat karakter, de accuraatheid, de volledigheid en de
D46: correctheid van de verschafte en/of de berekende informatie noch over de geldigheidsduur van de
D47: weergeven tarieven. ELIA zal dan ook niet aansprakelijk zijn voor de gevolgen voortvloeiend uit het
D48: eventueel niet volledig of correct zijn of het up to date zijn van de verschafte informatie en de tarieven.

Sheet Gegevens
C3: Gegevens in te vullen door de gebruiker
D5: 1. Karakteristieken van het toegangspunt
E7: Vul hierna het infrastructuurniveau, de regio en het type toegangspunt in.
E10: Infrastructuurniveau : | F10: In 380/220/150 kV-netten
E12: Regio : | F12: Het Brussels Gewest
E14: Type toegangspunt : | F14: Hoofdtoegangspunt
D16: 2. Netto afgename piek (in MW)
E18: Vul hierna de pieken voor afname in per maand (kolom A).
E19: Vul eveneens de pieken voor afname in tijdens de uren 17 tot 20, buiten weekend en feestdagen,
E20: enkel voor de maanden januari tot maart en november tot december (kolom B).
E22: N.B. : Per maand is de waarde in kolom B minstens gelijk aan de waarde in kolom A voor het jaar 2020.
F25: A (jaar 2020) | G25: B (jaar 2019) | H25: B (jaar 2020) | I25: Jaarpiek
E26: Januari | I26: =MAX($G$27:$G$37,H26) -> 0 | J26: =IF(H26>F26,"Combinatie pieken A en B NOK","") -> 
E27: Februari | I27: =MAX($G28:$G$37,H$26:H27) -> 0 | J27: =IF(H27>F27,"Combinatie pieken A en B NOK","") -> 
E28: Maart | I28: =MAX($G29:$G$37,H$26:H28) -> 0 | J28: =IF(H28>F28,"Combinatie pieken A en B NOK","") -> 
E29: April | I29: =MAX($G30:$G$37,H$26:H29) -> 0
E30: Mei | I30: =MAX($G31:$G$37,H$26:H30) -> 0
E31: Juni | I31: =MAX($G32:$G$37,H$26:H31) -> 0
E32: Juli | I32: =MAX($G33:$G$37,H$26:H32) -> 0
E33: Augustus | I33: =MAX($G34:$G$37,H$26:H33) -> 0
E34: September | I34: =MAX($G35:$G$37,H$26:H34) -> 0
E35: Oktober | I35: =MAX($G36:$G$37,H$26:H35) -> 0
E36: November | I36: =MAX($G37:$G$37,H$26:H36) -> 0 | J36: =IF(H36>F36,"Combinatie pieken A en B NOK","") -> 
E37: December | I37: =MAX(H$26:H37) -> 0 | J37: =IF(H37>F37,"Combinatie pieken A en B NOK","") -> 
D40: 3. Ter beschikking gestelde vermogen (in MVA)
E42: Vul hierna het ter beschikking gestelde vermogen bij afname in.
E44: N.B. : Het ter beschikking gestelde vermogen moet minstens gelijk zijn aan het maximum van de afgenomen
E45: piek van het jaar. Het ter beschikking gestelde vermogen moet rekening houden met het vermogen van de
E46: achterliggende installaties.
G48: =IF(F48<MAX(F26:F37)," Fout: lager dan de maximale piek 2019","") -> 
D51: 4. Netto afgenomen energie (in MWh)
E53: Vul hierna de netto afgenomen energie in per maand.
E55: Indien u wenst, kunt u een gebruiks-% inbrengen voor de automatische berekening van de maandelijkse energie
E56: op basis van de netto afgenomen pieken hierboven ingevuld en vervolgens op de knop klikken.
F58: 1
F61: Aantal uren per maand | G61: Maximale maandelijkse energie | H61: Afgenomen energie
E62: Januari | F62: 744 | G62: =F26*F62 -> 0 | I62: =IF(H62>G62,"Energie en piek onverenigbaar","") -> 
E63: Februari | F63: 696 | G63: 0 | I63: =IF(H63>G63,"Energie en piek onverenigbaar","") -> 
E64: Maart | F64: 743 | G64: 0
E65: April | F65: 720 | G65: 0
E66: Mei | F66: 744 | G66: 0
E67: Juni | F67: 720 | G67: 0
E68: Juli | F68: 744 | G68: 0
E69: Augustus | F69: 744 | G69: 0
E70: September | F70: 720 | G70: 0
E71: Oktober | F71: 745 | G71: 0
E72: November | F72: 720 | G72: 0
E73: December | F73: 744 | G73: 0
H74: =SUM(H62:H73) -> 0
D77: 5. Netto geïnjecteerde energie (en MWh)
E79: Vul hierna de netto geïnjecteerde energie in voor een jaar, indien van toepassing.
D84: 6. Gegevens betreffende de federale bijdrage
E86: Bent u toegangshouder ? | G86: Nee
E88: Beschikt u over een sectorakkoord ? | G88: Nee | H88: Opgenomen in berekening indien toegangshouder
E90: Beschikt u over een (Kyoto) convenant ? | G90: Nee | H90: Opgenomen in berekening indien toegangshouder
E92: Welk soort activiteit oefent u uit? | G92: Ander
H93: Opgenomen in berekening indien toegangshouder
H94: in Wallonië en sectorakkoord en/of convenant
E96: Dank u !
E97: De resultaten kunnen geconsulteerd worden op de worksheets “Resultaten I (Std)” en "Resultaten II (Std)”.

Sheet Resultaten I
B3: Tarieven voor :
B4: Type klant : | C4: Klant direct aan het Elia-net aangesloten
B5: Infrastructuurniveau : | C5: =D_Tension -> In 380/220/150 kV-netten
B6: Regio : | C6: =D_Region -> Het Brussels Gewest
B7: Type toegangspunt : | C7: =D_Type -> Hoofdtoegangspunt
B11: A. Tarieven voor het beheer en de ontwikkeling van de netinfrastructuur
D13: €/kW netto afgenomen per maand
C14: 1. Tarief voor de maandpiek voor afname | D14: =VLOOKUP($C$5,Tarieven!D9:F11,3,FALSE) -> 0.2157
D16: €/kW netto afgenomen per jaar
C17: 2. Tarief voor de jaarpiek voor afname | D17: =VLOOKUP($C$5,Tarieven!D16:F18,3,FALSE) -> 5.6881
D19: €/kVA voor afname per jaar
C20: 3. Tarief voor het ter beschikking gestelde vermogen voor afname | D20: =IF($C$7="Hoofdtoegangspunt",VLOOKUP($C$5,Tarieven!D24:G26,3,FALSE),VLOOKUP($C$5,Tarieven!D24:H26,4,FALSE)) -> 4.4844
B22: B. Tarief voor het beheer van het elektrisch systeem
D23: €/kW netto afgenomen
D24: =VLOOKUP($C$5,Tarieven!D32:F34,3,FALSE) -> 0.9268
B26: C. Tarieven voor de vermogensreserves en de black start
D27: €/MWh netto afgenomen
C28: 1. voor de afname | D28: =VLOOKUP($C$5,Tarieven!D41:F43,3,FALSE) -> 0.6929
D30: €/MWh netto geïnjecteerd
C31: 2. voor de injectie | D31: =VLOOKUP($C$5,Tarieven!D47:F49,3,FALSE) -> 0.6169
B33: D. Tarief voor integratie van de elektriciteitsmarkt
D34: €/MWh netto afgenomen
D35: =VLOOKUP($C$5,Tarieven!D54:F56,3,FALSE) -> 0.3667
B37: E. Tarieven voor Openbare Dienstverplichtingen
D38: €/MWh netto afgenomen
C39: 1. Tarief voor openbare dienstverplichtingen voor de financiering van de aansluiting van offshore windturbineparken (federaal) | D39: =VLOOKUP($C$5,Tarieven!D63:F65,3,FALSE) -> 0.084
D41: €/MWh netto afgenomen
C42: 2. Tarief voor openbare dienstverplichtingen voor de financiering van groenestroomcertificaten (federaal) | D42: =VLOOKUP($C$5,Tarieven!D70:F72,3,FALSE) -> 11.6852
D44: €/MWh netto afgenomen
C45: 3. Tarief voor openbare dienstverplichtingen voor de financiering van Strategische Reserves | D45: =VLOOKUP($C$5,Tarieven!D77:F79,3,FALSE) -> 0.051
D47: €/MWh netto afgenomen
C48: 4. Tarief voor openbare dienstverplichtingen voor de financiering van de steunmaatregelen voor hernieuwbare energie en warmtekrachtkoppeling in Vlaanderen | D48: =IF($C$6="Vlaanderen",VLOOKUP($C$5,Tarieven!D84:F86,3,FALSE),0) -> 0
D50: €/MWh netto afgenomen
C51: 5. Tarief voor openbare dienstverplichtingen voor de financiering van de maatregelen ter bevordering van rationeel energiegebruik in Vlaanderen | D51: =IF($C$6="Vlaanderen",VLOOKUP($C$5,Tarieven!D91:F93,3,FALSE),0) -> 0
D53: Eerste component | E53: Tweede component
D54: €/MWh netto afgenomen | E54: €/MWh netto afgenomen
C55: 6. Tarief voor openbare dienstverplichtingen voor de financiering van de steunmaatregelen voor hernieuwbare energie in Wallonië | D55: =IF($C$6="Wallonië",VLOOKUP($C$5,Tarieven!D99:F101,3,FALSE),0) -> 0 | E55: =IF($C$6="Wallonië",VLOOKUP($C$5,Tarieven!D99:G101,4,FALSE),0) -> 0
B57: F. Taksen en Toeslagen
D58: €/MWh netto afgenomen
C59: 1. Federale bijdrage | D59: =VLOOKUP($C$5,Tarieven!D107:F109,3,FALSE) -> 3.47
D61: €/MWh netto afgenomen
C62: 2. Toeslag voor het gebruik van het openbaar domein in Wallonië | D62: =IF($C$6="Wallonië",VLOOKUP($C$5,Tarieven!D114:F116,3,FALSE),0) -> 0
D64: €/MWh netto afgenomen
C65: 3. Toeslag retributie wegenisrecht in Brussel | D65: =IF($C$6="Het Brussels Gewest",VLOOKUP($C$5,Tarieven!D121:F123,3,FALSE),0) -> 3.5248
D67: €/MWh netto afgenomen
C68: 4. Toeslag voor de taksen “masten” en “sleuven” in Vlaanderen | D68: =IF($C$6="Vlaanderen",VLOOKUP($C$5,Tarieven!D128:F130,3,FALSE),0) -> 0

Sheet Resultaten II
B2: Resultaten
E4: Type klant : | F4: Klant direct aan het Elia-net aangesloten
E5: Infrastructuurniveau : | F5: =D_Tension -> In 380/220/150 kV-netten
E6: Regio : | F6: =D_Region -> Het Brussels Gewest
E7: Type toegangspunt : | F7: =D_Type -> Hoofdtoegangspunt
E8: Toegangshouder : | F8: =D_DA -> Nee
E9: Sectorakkoord : | F9: =D_AB -> Nee
E10: Convenant : | F10: =D_CK -> Nee
E11: Soort activiteit : | F11: =D_TA -> Ander
B15: a. Term voor het beheer en de ontwikkeling van de netinfrastructuur :
C17: a.1) Term voor maandselijke piek :
F19: Maandselijke piek | H19: Tarief | J19: Bedrag
E20: Januari | F20: =Gegevens!F26 -> 0 | G20: MW * | H20: ='Resultaten I'!$D$14 -> 0.2157 | I20: €/kW = | J20: =F20*H20*1000 -> 0 | K20: €
E21: Februari | F21: =Gegevens!F27 -> 0 | G21: MW * | H21: =H20 -> 0.2157 | I21: €/kW = | J21: =F21*H21*1000 -> 0 | K21: €
E22: Maart | F22: =Gegevens!F28 -> 0 | G22: MW * | H22: =H21 -> 0.2157 | I22: €/kW = | J22: 0 | K22: €
E23: April | F23: =Gegevens!F29 -> 0 | G23: MW * | H23: 0.2157 | I23: €/kW = | J23: 0 | K23: €
E24: Mei | F24: =Gegevens!F30 -> 0 | G24: MW * | H24: 0.2157 | I24: €/kW = | J24: 0 | K24: €
E25: Juni | F25: =Gegevens!F31 -> 0 | G25: MW * | H25: 0.2157 | I25: €/kW = | J25: 0 | K25: €
E26: Juli | F26: =Gegevens!F32 -> 0 | G26: MW * | H26: 0.2157 | I26: €/kW = | J26: 0 | K26: €
E27: Augustus | F27: =Gegevens!F33 -> 0 | G27: MW * | H27: 0.2157 | I27: €/kW = | J27: 0 | K27: €
E28: September | F28: =Gegevens!F34 -> 0 | G28: MW * | H28: 0.2157 | I28: €/kW = | J28: 0 | K28: €
E29: Oktober | F29: =Gegevens!F35 -> 0 | G29: MW * | H29: 0.2157 | I29: €/kW = | J29: 0 | K29: €
E30: November | F30: =Gegevens!F36 -> 0 | G30: MW * | H30: 0.2157 | I30: €/kW = | J30: 0 | K30: €
E31: December | F31: =Gegevens!F37 -> 0 | G31: MW * | H31: 0.2157 | I31: €/kW = | J31: 0 | K31: €
I33: Totaal term voor maandselijke piek : | J33: =SUM(J20:J31) -> 0 | K33: €
C36: a.2) Term voor jaarlijkse piek :
F38: Jaarlijkse piek | H38: Tarief | J38: Bedrag
E39: Januari | F39: =Gegevens!I26 -> 0 | G39: MW * | H39: ='Resultaten I'!$D$17/12 -> 0.4740083333 | I39: €/kW = | J39: =F39*H39*1000 -> 0 | K39: €
E40: Februari | F40: =Gegevens!I27 -> 0 | G40: MW * | H40: =H39 -> 0.4740083333 | I40: €/kW = | J40: 0 | K40: €
E41: Maart | F41: =Gegevens!I28 -> 0 | G41: MW * | H41: =H40 -> 0.4740083333 | I41: €/kW = | J41: 0 | K41: €
E42: April | F42: =Gegevens!I29 -> 0 | G42: MW * | H42: 0.4740083333 | I42: €/kW = | J42: 0 | K42: €
E43: Mei | F43: =Gegevens!I30 -> 0 | G43: MW * | H43: 0.4740083333 | I43: €/kW = | J43: 0 | K43: €
E44: Juni | F44: =Gegevens!I31 -> 0 | G44: MW * | H44: 0.4740083333 | I44: €/kW = | J44: 0 | K44: €
E45: Juli | F45: =Gegevens!I32 -> 0 | G45: MW * | H45: 0.4740083333 | I45: €/kW = | J45: 0 | K45: €
E46: Augustus | F46: =Gegevens!I33 -> 0 | G46: MW * | H46: 0.4740083333 | I46: €/kW = | J46: 0 | K46: €
E47: September | F47: =Gegevens!I34 -> 0 | G47: MW * | H47: 0.4740083333 | I47: €/kW = | J47: 0 | K47: €
E48: Oktober | F48: =Gegevens!I35 -> 0 | G48: MW * | H48: 0.4740083333 | I48: €/kW = | J48: 0 | K48: €
E49: November | F49: =Gegevens!I36 -> 0 | G49: MW * | H49: 0.4740083333 | I49: €/kW = | J49: 0 | K49: €
E50: December | F50: =Gegevens!I37 -> 0 | G50: MW * | H50: 0.4740083333 | I50: €/kW = | J50: 0 | K50: €
I52: Totaal term voor jaarlijkse piek : | J52: =SUM(J39:J50) -> 0 | K52: €
C55: a.3) Term voor het ter beschikking gestelde vermogen voor afname :
F57: Vermogen | H57: Tarief | J57: Bedrag
F58: =Gegevens!$F$48 -> 0 | G58: MVA * | H58: ='Resultaten I'!$D$20 -> 4.4844 | I58: €/kVA | J58: =F58*H58*1000 -> 0 | K58: €
I60: Totaal term voor het beheer en de ontwikkeling van de netinfrastructuur : | J60: =J33+J52+J58 -> 0 | K60: €
B63: b) Term voor het beheer van het elektrisch systeem :
F65: Netto afgenomen energie | H65: Tarief | J65: Bedrag
E66: Januari | F66: =Gegevens!H62 -> 0 | G66: MWh * | H66: ='Resultaten I'!D24 -> 0.9268 | I66: €/MWh = | J66: =F66*H66 -> 0 | K66: €
E67: Februari | F67: =Gegevens!H63 -> 0 | G67: MWh * | H67: =H66 -> 0.9268 | I67: €/MWh = | J67: =F67*H67 -> 0 | K67: €
E68: Maart | F68: =Gegevens!H64 -> 0 | G68: MWh * | H68: =H67 -> 0.9268 | I68: €/MWh = | J68: 0 | K68: €
E69: April | F69: =Gegevens!H65 -> 0 | G69: MWh * | H69: 0.9268 | I69: €/MWh = | J69: 0 | K69: €
E70: Mei | F70: =Gegevens!H66 -> 0 | G70: MWh * | H70: 0.9268 | I70: €/MWh = | J70: 0 | K70: €
E71: Juni | F71: =Gegevens!H67 -> 0 | G71: MWh * | H71: 0.9268 | I71: €/MWh = | J71: 0 | K71: €
E72: Juli | F72: =Gegevens!H68 -> 0 | G72: MWh * | H72: 0.9268 | I72: €/MWh = | J72: 0 | K72: €
E73: Augustus | F73: =Gegevens!H69 -> 0 | G73: MWh * | H73: 0.9268 | I73: €/MWh = | J73: 0 | K73: €
E74: September | F74: =Gegevens!H70 -> 0 | G74: MWh * | H74: 0.9268 | I74: €/MWh = | J74: 0 | K74: €
E75: Oktober | F75: =Gegevens!H71 -> 0 | G75: MWh * | H75: 0.9268 | I75: €/MWh = | J75: 0 | K75: €
E76: November | F76: =Gegevens!H72 -> 0 | G76: MWh * | H76: 0.9268 | I76: €/MWh = | J76: 0 | K76: €
E77: December | F77: =Gegevens!H73 -> 0 | G77: MWh * | H77: 0.9268 | I77: €/MWh = | J77: 0 | K77: €
I79: Totaal term voor het beheer van het elektrisch systeem : | J79: =SUM(J66:J77) -> 0 | K79: €
B82: c) Term voor de vermogensreserves en de black start :
D84: c.1. Voor de afname :
F85: Netto afgenomen energie | H85: Tarief | J85: Bedrag
E86: Januari | F86: =Gegevens!H62 -> 0 | G86: MWh * | H86: ='Resultaten I'!D28 -> 0.6929 | I86: €/MWh = | J86: =F86*H86 -> 0 | K86: €
E87: Februari | F87: =Gegevens!H63 -> 0 | G87: MWh * | H87: =H86 -> 0.6929 | I87: €/MWh = | J87: =F87*H87 -> 0 | K87: €
E88: Maart | F88: =Gegevens!H64 -> 0 | G88: MWh * | H88: =H87 -> 0.6929 | I88: €/MWh = | J88: 0 | K88: €
E89: April | F89: =Gegevens!H65 -> 0 | G89: MWh * | H89: 0.6929 | I89: €/MWh = | J89: 0 | K89: €
E90: Mei | F90: =Gegevens!H66 -> 0 | G90: MWh * | H90: 0.6929 | I90: €/MWh = | J90: 0 | K90: €
E91: Juni | F91: =Gegevens!H67 -> 0 | G91: MWh * | H91: 0.6929 | I91: €/MWh = | J91: 0 | K91: €
E92: Juli | F92: =Gegevens!H68 -> 0 | G92: MWh * | H92: 0.6929 | I92: €/MWh = | J92: 0 | K92: €
E93: Augustus | F93: =Gegevens!H69 -> 0 | G93: MWh * | H93: 0.6929 | I93: €/MWh = | J93: 0 | K93: €
E94: September | F94: =Gegevens!H70 -> 0 | G94: MWh * | H94: 0.6929 | I94: €/MWh = | J94: 0 | K94: €
E95: Oktober | F95: =Gegevens!H71 -> 0 | G95: MWh * | H95: 0.6929 | I95: €/MWh = | J95: 0 | K95: €
E96: November | F96: =Gegevens!H72 -> 0 | G96: MWh * | H96: 0.6929 | I96: €/MWh = | J96: 0 | K96: €
E97: December | F97: =Gegevens!H73 -> 0 | G97: MWh * | H97: 0.6929 | I97: €/MWh = | J97: 0 | K97: €
D99: Totaal term voor de vermogensreserves en de black start voor de afname : | J99: =SUM(J86:J97) -> 0 | K99: €
D101: c.2. Voor de injectie :
F102: Netto geïnjecteerde energie | H102: Tarief | J102: Bedrag
F103: =Gegevens!F81 -> 0 | G103: MWh * | H103: ='Resultaten I'!D31 -> 0.6169 | I103: €/MWh = | J103: =F103*H103 -> 0 | K103: €
D105: Totaal term voor de vermogensreserves en de black start : | J105: =J99+J103 -> 0 | K105: €
B108: d) Term voor integratie van de elektriciteitsmarkt :
F110: Netto afgenomen energie | H110: Tarief | J110: Bedrag
E111: Januari | F111: =Gegevens!H62 -> 0 | G111: MWh * | H111: ='Resultaten I'!D35 -> 0.3667 | I111: €/MWh = | J111: =F111*H111 -> 0 | K111: €
E112: Februari | F112: =Gegevens!H63 -> 0 | G112: MWh * | H112: =H111 -> 0.3667 | I112: €/MWh = | J112: =F112*H112 -> 0 | K112: €
E113: Maart | F113: =Gegevens!H64 -> 0 | G113: MWh * | H113: =H112 -> 0.3667 | I113: €/MWh = | J113: 0 | K113: €
E114: April | F114: =Gegevens!H65 -> 0 | G114: MWh * | H114: 0.3667 | I114: €/MWh = | J114: 0 | K114: €
E115: Mei | F115: =Gegevens!H66 -> 0 | G115: MWh * | H115: 0.3667 | I115: €/MWh = | J115: 0 | K115: €
E116: Juni | F116: =Gegevens!H67 -> 0 | G116: MWh * | H116: 0.3667 | I116: €/MWh = | J116: 0 | K116: €
E117: Juli | F117: =Gegevens!H68 -> 0 | G117: MWh * | H117: 0.3667 | I117: €/MWh = | J117: 0 | K117: €
E118: Augustus | F118: =Gegevens!H69 -> 0 | G118: MWh * | H118: 0.3667 | I118: €/MWh = | J118: 0 | K118: €
E119: September | F119: =Gegevens!H70 -> 0 | G119: MWh * | H119: 0.3667 | I119: €/MWh = | J119: 0 | K119: €
E120: Oktober | F120: =Gegevens!H71 -> 0 | G120: MWh * | H120: 0.3667 | I120: €/MWh = | J120: 0 | K120: €
E121: November | F121: =Gegevens!H72 -> 0 | G121: MWh * | H121: 0.3667 | I121: €/MWh = | J121: 0 | K121: €
E122: December | F122: =Gegevens!H73 -> 0 | G122: MWh * | H122: 0.3667 | I122: €/MWh = | J122: 0 | K122: €
I124: Totaal term voor integratie van de elektriciteitsmarkt : | J124: =SUM(J111:J122) -> 0 | K124: €
B127: e) Openbare Dienstverplichtingen :
C129: e.1.) De aansluiting van offshore windturbineparken (federaal niveau)
F131: Netto afgenomen energie | H131: Tarief | J131: Bedrag
E132: Januari | F132: =Gegevens!H62 -> 0 | G132: MWh * | H132: ='Resultaten I'!D39 -> 0.084 | I132: €/MWh = | J132: =F132*H132 -> 0 | K132: €
E133: Februari | F133: =Gegevens!H63 -> 0 | G133: MWh * | H133: =H132 -> 0.084 | I133: €/MWh = | J133: =F133*H133 -> 0 | K133: €
E134: Maart | F134: =Gegevens!H64 -> 0 | G134: MWh * | H134: =H133 -> 0.084 | I134: €/MWh = | J134: 0 | K134: €
E135: April | F135: =Gegevens!H65 -> 0 | G135: MWh * | H135: 0.084 | I135: €/MWh = | J135: 0 | K135: €
E136: Mei | F136: =Gegevens!H66 -> 0 | G136: MWh * | H136: 0.084 | I136: €/MWh = | J136: 0 | K136: €
E137: Juni | F137: =Gegevens!H67 -> 0 | G137: MWh * | H137: 0.084 | I137: €/MWh = | J137: 0 | K137: €
E138: Juli | F138: =Gegevens!H68 -> 0 | G138: MWh * | H138: 0.084 | I138: €/MWh = | J138: 0 | K138: €
E139: Augustus | F139: =Gegevens!H69 -> 0 | G139: MWh * | H139: 0.084 | I139: €/MWh = | J139: 0 | K139: €
E140: September | F140: =Gegevens!H70 -> 0 | G140: MWh * | H140: 0.084 | I140: €/MWh = | J140: 0 | K140: €
E141: Oktober | F141: =Gegevens!H71 -> 0 | G141: MWh * | H141: 0.084 | I141: €/MWh = | J141: 0 | K141: €
E142: November | F142: =Gegevens!H72 -> 0 | G142: MWh * | H142: 0.084 | I142: €/MWh = | J142: 0 | K142: €
E143: December | F143: =Gegevens!H73 -> 0 | G143: MWh * | H143: 0.084 | I143: €/MWh = | J143: 0 | K143: €
D145: Totaal term voor de aansluiting van offshore windturbineparken : | J145: =SUM(J132:J143) -> 0 | K145: €
C148: e.2.) Groenestroomcertificaten (federaal niveau)
D149: De berekening van de degressiviteit is gebaseerd op de volumes uit het lopende kalenderjaar
D150: en niet op basis van volumes genomen van de laatste 11 maanden plus de huidige maand zoals gespecificeerd in het tarief.
D151: Voor de directe klanten is de berekening van de schijf per afgenomen energie om de degressiviteit en het maximum
D152: van 250.000 € te bepalen berekend per toegangspunt en niet per verbruiksadres zoals gespecifieerd in het tarief.
E154: Schijven | F154: Netto afgenomen energie per schijf | H154: Tarief | J154: Bedrag | M154: Degressiviteit
E155: 0-20 | F155: =MIN(20,Gegevens!H74) -> 0 | G155: MWh * | H155: ='Resultaten I'!D42 -> 11.6852 | I155: €/MWh = | J155: =F155*H155*M155 -> 0 | K155: € | M155: 1 | O155: =IF(Gegevens!O86="Ja","","") -> 
E156: 20-50 | F156: =MIN(50,Gegevens!H74)-SUM($F$155:F155) -> 0 | G156: MWh * | H156: =H155 -> 11.6852 | I156: €/MWh = | J156: =F156*H156*M156 -> 0 | K156: € | M156: =IF(AND($F$8="Ja",OR($F$9="Ja",$F$10="Ja")),0.85,1) -> 1
E157: 50-1000 | F157: =MIN(1000,Gegevens!H74)-SUM($F$155:F156) -> 0 | G157: MWh * | H157: =H156 -> 11.6852 | I157: €/MWh = | J157: =F157*H157*M157 -> 0 | K157: € | M157: =IF(AND($F$8="Ja",OR($F$9="Ja",$F$10="Ja")),0.8,1) -> 1
E158: 1000-25000 | F158: =MIN(25000,Gegevens!H74)-SUM($F$155:F157) -> 0 | G158: MWh * | H158: =H157 -> 11.6852 | I158: €/MWh = | J158: =F158*H158*M158 -> 0 | K158: € | M158: =IF(AND($F$8="Ja",OR($F$9="Ja",$F$10="Ja")),0.75,1) -> 1
E159: >25000 | F159: =Gegevens!H74-SUM($F$155:F158) -> 0 | G159: MWh * | H159: =H158 -> 11.6852 | I159: €/MWh = | J159: =F159*H159*M159 -> 0 | K159: € | M159: =IF(AND($F$8="Ja",OR($F$9="Ja",$F$10="Ja")),0.55,1) -> 1
I161: Totaal term voor groenestroomcertificaten : | J161: =IF(AND($F$8="Ja",OR($F$9="Ja",$F$10="Ja")),MIN(250000,SUM(J155:J159)),SUM(J155:J159)) -> 0 | K161: €
C164: e.3.) Financiering van Strategische Reserves (federaal niveau)
F166: Netto afgenomen energie | H166: Tarief | J166: Bedrag
E167: Januari | F167: =Gegevens!H62 -> 0 | G167: MWh * | H167: ='Resultaten I'!D45 -> 0.051 | I167: €/MWh = | J167: =F167*H167 -> 0 | K167: €
E168: Februari | F168: =Gegevens!H63 -> 0 | G168: MWh * | H168: =H167 -> 0.051 | I168: €/MWh = | J168: =F168*H168 -> 0 | K168: €
E169: Maart | F169: =Gegevens!H64 -> 0 | G169: MWh * | H169: =H168 -> 0.051 | I169: €/MWh = | J169: 0 | K169: €
E170: April | F170: =Gegevens!H65 -> 0 | G170: MWh * | H170: 0.051 | I170: €/MWh = | J170: 0 | K170: €
E171: Mei | F171: =Gegevens!H66 -> 0 | G171: MWh * | H171: 0.051 | I171: €/MWh = | J171: 0 | K171: €
E172: Juni | F172: =Gegevens!H67 -> 0 | G172: MWh * | H172: 0.051 | I172: €/MWh = | J172: 0 | K172: €
E173: Juli | F173: =Gegevens!H68 -> 0 | G173: MWh * | H173: 0.051 | I173: €/MWh = | J173: 0 | K173: €
E174: Augustus | F174: =Gegevens!H69 -> 0 | G174: MWh * | H174: 0.051 | I174: €/MWh = | J174: 0 | K174: €
E175: September | F175: =Gegevens!H70 -> 0 | G175: MWh * | H175: 0.051 | I175: €/MWh = | J175: 0 | K175: €
E176: Oktober | F176: =Gegevens!H71 -> 0 | G176: MWh * | H176: 0.051 | I176: €/MWh = | J176: 0 | K176: €
E177: November | F177: =Gegevens!H72 -> 0 | G177: MWh * | H177: 0.051 | I177: €/MWh = | J177: 0 | K177: €
E178: December | F178: =Gegevens!H73 -> 0 | G178: MWh * | H178: 0.051 | I178: €/MWh = | J178: 0 | K178: €
I180: Totaal term voor inanciering van Strategische Reserves : | J180: =SUM(J167:J178) -> 0 | K180: €
C183: e.4.) Financiering van de steunmaatregelen voor hernieuwbare energie en warmtekrachtkoppeling (Vlaams gewest)
D184: De vaststelling van het tarief is niet afhankelijk van het voorgaande jaar, maar van het jaar dat bij referentie is gekozen, in tegenstelling tot wat in de tarieven is bepaald.
D186: =IF($F$6="Vlaanderen","","Niet van toepassing in deze regio") -> Niet van toepassing in deze regio
E187: Schijven | F187: Netto afgenomen energie per schijf | H187: Tarief | J187: Bedrag | M187: Degressiviteit
E188: 0-1000 | F188: =IF($F$6<>"Vlaanderen","",IF(Gegevens!H74<1000,Gegevens!H74,0)) ->  | G188: =IF($F$6<>"Vlaanderen","","MWh *") ->  | H188: =IF($F$6<>"Vlaanderen","",'Resultaten I'!$D$48) ->  | I188: =IF($F$6<>"Vlaanderen","","€/MWh =") ->  | J188: =IF($F$6<>"Vlaanderen","",F188*H188*M188) ->  | K188: =IF($F$6<>"Vlaanderen","","€") ->  | M188: =IF($F$6<>"Vlaanderen","",1) -> 
E189: 1000-20000 | F189: =IF($F$6<>"Vlaanderen","",IF(AND(1000<=Gegevens!H74,Gegevens!H74<20000),Gegevens!H74,0)) ->  | G189: =IF($F$6<>"Vlaanderen","","MWh *") ->  | H189: =IF($F$6<>"Vlaanderen","",'Resultaten I'!$D$48) ->  | I189: =IF($F$6<>"Vlaanderen","","€/MWh =") ->  | J189: =IF($F$6<>"Vlaanderen","",F189*H189*M189) ->  | K189: =IF($F$6<>"Vlaanderen","","€") ->  | M189: =IF($F$6<>"Vlaanderen","",0.53) -> 
E190: 20000-100000 | F190: =IF($F$6<>"Vlaanderen","",IF(AND(20000<=Gegevens!H74,Gegevens!H74<100000),Gegevens!H74,0)) ->  | G190: =IF($F$6<>"Vlaanderen","","MWh *") ->  | H190: =IF($F$6<>"Vlaanderen","",'Resultaten I'!$D$48) ->  | I190: =IF($F$6<>"Vlaanderen","","€/MWh =") ->  | J190: =IF($F$6<>"Vlaanderen","",F190*H190*M190) ->  | K190: =IF($F$6<>"Vlaanderen","","€") ->  | M190: =IF($F$6<>"Vlaanderen","",0.2) -> 
E191: 100000-250000 | F191: =IF($F$6<>"Vlaanderen","",IF(AND(100000<=Gegevens!H74,Gegevens!H74<250000),Gegevens!H74,0)) ->  | G191: =IF($F$6<>"Vlaanderen","","MWh *") ->  | H191: =IF($F$6<>"Vlaanderen","",'Resultaten I'!$D$48) ->  | I191: =IF($F$6<>"Vlaanderen","","€/MWh =") ->  | J191: =IF($F$6<>"Vlaanderen","",F191*H191*M191) ->  | K191: =IF($F$6<>"Vlaanderen","","€") ->  | M191: =IF($F$6<>"Vlaanderen","",0.2) -> 
E192: >250000 | F192: =IF($F$6<>"Vlaanderen","",IF(250000<=Gegevens!H74,Gegevens!H74,0)) ->  | G192: =IF($F$6<>"Vlaanderen","","MWh *") ->  | H192: =IF($F$6<>"Vlaanderen","",'Resultaten I'!$D$48) ->  | I192: =IF($F$6<>"Vlaanderen","","€/MWh =") ->  | J192: =IF($F$6<>"Vlaanderen","",F192*H192*M192) ->  | K192: =IF($F$6<>"Vlaanderen","","€") ->  | M192: =IF($F$6<>"Vlaanderen","",0.02) -> 
E194: Totaal term voor Financiering van de steunmaatregelen voorhernieuwbare energie en warmtekrachtkoppeling : | J194: =SUM(J188:J192) -> 0 | K194: €
C196: e.5.) Financiering van de maatregelen ter bevordering van rationeel energiegebruik (Vlaams gewest)
D197: =IF($F$6="Vlaanderen","","Niet van toepassing in deze regio") -> Niet van toepassing in deze regio
F198: Netto afgenomen energie | H198: Tarief | J198: Bedrag
E199: Januari | F199: =IF($F$6<>"Vlaanderen","",Gegevens!H62) ->  | G199: =IF($F$6<>"Vlaanderen","","MWh *") ->  | H199: =IF($F$6<>"Vlaanderen","",'Resultaten I'!$D$51) ->  | I199: =IF($F$6<>"Vlaanderen","","€/MWh =") ->  | J199: =IF($F$6<>"Vlaanderen","",F199*H199) ->  | K199: =IF($F$6<>"Vlaanderen","","€") -> 
E200: Februari | F200: =IF($F$6<>"Vlaanderen","",Gegevens!H63) ->  | H200: =IF($F$6<>"Vlaanderen","",'Resultaten I'!$D$51) -> 
E201: Maart | F201: =IF($F$6<>"Vlaanderen","",Gegevens!H64) ->  | H201: =IF($F$6<>"Vlaanderen","",'Resultaten I'!$D$51) -> 
E202: April | F202: =IF($F$6<>"Vlaanderen","",Gegevens!H65) ->  | H202: =IF($F$6<>"Vlaanderen","",'Resultaten I'!$D$51) -> 
E203: Mei | F203: =IF($F$6<>"Vlaanderen","",Gegevens!H66) ->  | H203: =IF($F$6<>"Vlaanderen","",'Resultaten I'!$D$51) -> 
E204: Juni | F204: =IF($F$6<>"Vlaanderen","",Gegevens!H67) ->  | H204: =IF($F$6<>"Vlaanderen","",'Resultaten I'!$D$51) -> 
E205: Juli | F205: =IF($F$6<>"Vlaanderen","",Gegevens!H68) ->  | H205: =IF($F$6<>"Vlaanderen","",'Resultaten I'!$D$51) -> 
E206: Augustus | F206: =IF($F$6<>"Vlaanderen","",Gegevens!H69) ->  | H206: =IF($F$6<>"Vlaanderen","",'Resultaten I'!$D$51) -> 
E207: September | F207: =IF($F$6<>"Vlaanderen","",Gegevens!H70) ->  | H207: =IF($F$6<>"Vlaanderen","",'Resultaten I'!$D$51) -> 
E208: Oktober | F208: =IF($F$6<>"Vlaanderen","",Gegevens!H71) ->  | H208: =IF($F$6<>"Vlaanderen","",'Resultaten I'!$D$51) -> 
E209: November | F209: =IF($F$6<>"Vlaanderen","",Gegevens!H72) ->  | H209: =IF($F$6<>"Vlaanderen","",'Resultaten I'!$D$51) -> 
E210: December | F210: =IF($F$6<>"Vlaanderen","",Gegevens!H73) ->  | H210: =IF($F$6<>"Vlaanderen","",'Resultaten I'!$D$51) -> 
E212: Totaal term Financiering van de maatregelen ter bevordering van rationeel energiegebruik : | J212: =SUM(J199:J210) -> 0 | K212: €
C214: e.6.) Financiering van de steunmaatregelen voor hernieuwbare energie (Waals gewest)
D215: =IF($F$6="Wallonië","","Niet van toepassing in deze regio") -> Niet van toepassing in deze regio
D217: e.6.a.) Eerste component
F219: Netto afgenomen energie | H219: Tarief voor eerste component | J219: Bedrag
E220: Januari | F220: =IF($F$6<>"Wallonië","",Gegevens!H62) ->  | G220: =IF($F$6<>"Wallonië","","MWh *") ->  | H220: =IF($F$6<>"Wallonië","",'Resultaten I'!$D$55) ->  | I220: =IF($F$6<>"Wallonië","","€/MWh =") ->  | J220: =IF($F$6<>"Wallonië","",F220*H220) ->  | K220: =IF($F$6<>"Wallonië","","€") -> 
E221: Februari | F221: =IF($F$6<>"Wallonië","",Gegevens!H63) ->  | H221: =IF($F$6<>"Wallonië","",'Resultaten I'!$D$55) ->  | J221: =IF($F$6<>"Wallonië","",F221*H221) -> 
E222: Maart | F222: =IF($F$6<>"Wallonië","",Gegevens!H64) ->  | H222: =IF($F$6<>"Wallonië","",'Resultaten I'!$D$55) -> 
E223: April | F223: =IF($F$6<>"Wallonië","",Gegevens!H65) ->  | H223: =IF($F$6<>"Wallonië","",'Resultaten I'!$D$55) -> 
E224: Mei | F224: =IF($F$6<>"Wallonië","",Gegevens!H66) ->  | H224: =IF($F$6<>"Wallonië","",'Resultaten I'!$D$55) -> 
E225: Juni | F225: =IF($F$6<>"Wallonië","",Gegevens!H67) ->  | H225: =IF($F$6<>"Wallonië","",'Resultaten I'!$D$55) -> 
E226: Juli | F226: =IF($F$6<>"Wallonië","",Gegevens!H68) ->  | H226: =IF($F$6<>"Wallonië","",'Resultaten I'!$D$55) -> 
E227: Augustus | F227: =IF($F$6<>"Wallonië","",Gegevens!H69) ->  | H227: =IF($F$6<>"Wallonië","",'Resultaten I'!$D$55) -> 
E228: September | F228: =IF($F$6<>"Wallonië","",Gegevens!H70) ->  | H228: =IF($F$6<>"Wallonië","",'Resultaten I'!$D$55) -> 
E229: Oktober | F229: =IF($F$6<>"Wallonië","",Gegevens!H71) ->  | H229: =IF($F$6<>"Wallonië","",'Resultaten I'!$D$55) -> 
E230: November | F230: =IF($F$6<>"Wallonië","",Gegevens!H72) ->  | H230: =IF($F$6<>"Wallonië","",'Resultaten I'!$D$55) -> 
E231: December | F231: =IF($F$6<>"Wallonië","",Gegevens!H73) ->  | H231: =IF($F$6<>"Wallonië","",'Resultaten I'!$D$55) -> 
E233: Totaal term voor Financiering van de steunmaatregelen voor hernieuwbare energie : | J233: =SUM(J220:J231) -> 0 | K233: €
I235: Totaal term voor openbare Dienstverplichtingen : | J235: =J145+J161+J180+J194+J212+J233 -> 0 | K235: €
D239: De vrijstelling van de eerste component en de facturatie van de tweede component worden op kwartaalbasis gemaakt op basis van een door de SPW ontvangen bestand
D240: op basis van de door de SPW vastgestelde heffing en tarief.
D241: De principes worden beschreven in de richtlijnen van de SPW.
D242: Voor meer informatie, zie https://www.elia.be/fr/clients/certificats-verts-et-surcharges/wallonie-exemptions-partielles#Partial exemptions. (in her Frans)
D243: De onderstaande berekening is louter indicatief op basis van het gesimuleerde afname volume en op basis van het tarief voor de eerste component.
D245: e.6.b.) Vrijstelling eerste component
F246: Netto afgenomen energie | H246: Vrijgesteld tarief | J246: Bedrag | M246: Vrijstelling
E247: Januari | F247: =IF($F$6<>"Wallonië","",Gegevens!H62) ->  | G247: =IF($F$6<>"Wallonië","","MWh *") ->  | H247: =IF($F$6<>"Wallonië","",-'Resultaten I'!$D$55*$M$247) ->  | I247: =IF($F$6<>"Wallonië","","€/MWh =") ->  | J247: =IF($F$6<>"Wallonië","",F247*H247) ->  | K247: =IF($F$6<>"Wallonië","","€") ->  | M247: =IF($F$6<>"Wallonië","",IF($F$8="Nee",0,IF($F$9="Ja",0.85,IF($F$11="Ander",0,IF($F$11="Plantaardige en dierlijke productie (01)",0.5,IF(Gegevens!H74>1000,0.5,0)))))) -> 
E248: Februari | F248: =IF($F$6<>"Wallonië","",Gegevens!H63) ->  | H248: =IF($F$6<>"Wallonië","",-'Resultaten I'!$D$55*$M$247) -> 
E249: Maart | F249: =IF($F$6<>"Wallonië","",Gegevens!H64) ->  | H249: =IF($F$6<>"Wallonië","",-'Resultaten I'!$D$55*$M$247) -> 
E250: April | F250: =IF($F$6<>"Wallonië","",Gegevens!H65) ->  | H250: =IF($F$6<>"Wallonië","",-'Resultaten I'!$D$55*$M$247) -> 
E251: Mei | F251: =IF($F$6<>"Wallonië","",Gegevens!H66) ->  | H251: =IF($F$6<>"Wallonië","",-'Resultaten I'!$D$55*$M$247) -> 
E252: Juni | F252: =IF($F$6<>"Wallonië","",Gegevens!H67) ->  | H252: =IF($F$6<>"Wallonië","",-'Resultaten I'!$D$55*$M$247) -> 
E253: Juli | F253: =IF($F$6<>"Wallonië","",Gegevens!H68) ->  | H253: =IF($F$6<>"Wallonië","",-'Resultaten I'!$D$55*$M$247) -> 
E254: Augustus | F254: =IF($F$6<>"Wallonië","",Gegevens!H69) ->  | H254: =IF($F$6<>"Wallonië","",-'Resultaten I'!$D$55*$M$247) -> 
E255: September | F255: =IF($F$6<>"Wallonië","",Gegevens!H70) ->  | H255: =IF($F$6<>"Wallonië","",-'Resultaten I'!$D$55*$M$247) -> 
E256: Oktober | F256: =IF($F$6<>"Wallonië","",Gegevens!H71) ->  | H256: =IF($F$6<>"Wallonië","",-'Resultaten I'!$D$55*$M$247) -> 
E257: November | F257: =IF($F$6<>"Wallonië","",Gegevens!H72) ->  | H257: =IF($F$6<>"Wallonië","",-'Resultaten I'!$D$55*$M$247) -> 
E258: December | F258: =IF($F$6<>"Wallonië","",Gegevens!H73) ->  | H258: =IF($F$6<>"Wallonië","",-'Resultaten I'!$D$55*$M$247) -> 
... 85 more rows

Sheet Tarieven
B2: TARIFS
B5: A. Tarieven voor het beheer en de ontwikkeling van de netinfrastructuur
C7: 1. Tarieven voor de maandpiek voor afname
F8: €/kW netto afgenomen per maand
D9: In 380/220/150 kV-netten | F9: 0.2157
D10: In 70/36/30 kV-netten | F10: 0.3887
D11: Bij de uitgang van de transformaties naar Middenspanning | F11: 0.5632
C14: 2. Tarieven voor de jaarpiek voor afname
F15: €/kW netto afgenomen per jaar
D16: In 380/220/150 kV-netten | F16: 5.6881
D17: In 70/36/30 kV-netten | F17: 9.9198
D18: Bij de uitgang van de transformaties naar Middenspanning | F18: 14.1214
C21: 3. Tarieven voor het ter beschikking gestelde vermogen voor afname
F22: Hoofd TP | G22: Bijkomend TP
F23: €/kVA voor afname per jaar | G23: €/kVA voor afname per jaar
D24: In 380/220/150 kV-netten | F24: 4.4844 | G24: 0.8969
D25: In 70/36/30 kV-netten | F25: 8.6526 | G25: 1.7305
D26: Bij de uitgang van de transformaties naar Middenspanning | F26: 15.8735 | G26: 3.1747
B29: B. Tarieven voor het beheer van het elektrisch systeem
F31: €/kW netto afgenomen
D32: In 380/220/150 kV-netten | F32: 0.9268
D33: In 70/36/30 kV-netten | F33: 1.4596
D34: Bij de uitgang van de transformaties naar Middenspanning | F34: 2.2869
B37: C. Tarieven voor de vermogensreserves en de black start
C39: 1. voor de afname
F40: €/MWh netto afgenomen
D41: In 380/220/150 kV-netten | F41: 0.6929
D42: In 70/36/30 kV-netten | F42: 0.6929
D43: Bij de uitgang van de transformaties naar Middenspanning | F43: 0.6929
C45: 2. voor de injectie
F46: €/MWh netto geïnjecteerd
D47: In 380/220/150 kV-netten | F47: 0.6169
D48: In 70/36/30 kV-netten | F48: 0.6169
D49: Bij de uitgang van de transformaties naar Middenspanning | F49: 0.6169
B52: D. Tarieven voor integratie van de elektriciteitsmarkt
F53: €/MWh netto afgenomen
D54: In 380/220/150 kV-netten | F54: 0.3667
D55: In 70/36/30 kV-netten | F55: 0.3667
D56: Bij de uitgang van de transformaties naar Middenspanning | F56: 0.3667
B59: E. Tarieven voor Openbare Dienstverplichtingen
C61: 1. Tarief voor openbare dienstverplichtingen voor de financiering van de aansluiting van offshore windturbineparken (federaal)
F62: €/MWh netto afgenomen
D63: In 380/220/150 kV-netten | F63: 0.084
D64: In 70/36/30 kV-netten | F64: 0.084
D65: Bij de uitgang van de transformaties naar Middenspanning | F65: 0.084
C68: 2. Tarief voor de financiering van groenestroomcertificaten (federaal)
F69: €/MWh netto afgenomen
D70: In 380/220/150 kV-netten | F70: 11.6852
D71: In 70/36/30 kV-netten | F71: 11.6852
D72: Bij de uitgang van de transformaties naar Middenspanning | F72: 11.6852
C75: 3. Tarief voor openbare dienstverplichtingen voor de financiering van Strategische Reserves (federaal)
F76: €/MWh netto afgenomen
D77: In 380/220/150 kV-netten | F77: 0.051
D78: In 70/36/30 kV-netten | F78: 0.051
D79: Bij de uitgang van de transformaties naar Middenspanning | F79: 0.051
C82: 4. Tarief voor openbare dienstverplichtingen voor de financiering van de steunmaatregelen voor hernieuwbare energie en warmtekrachtkoppeling in Vlaanderen
F83: €/MWh netto afgenomen
D84: In 380/220/150 kV-netten | F84: 0
D85: In 70/36/30 kV-netten | F85: 0.553
D86: Bij de uitgang van de transformaties naar Middenspanning | F86: 0.553
C89: 5. Tarief voor openbare dienstverplichtingen voor de financiering van de maatregelen ter bevordering van rationeel energiegebruik in Vlaanderen
F90: €/MWh netto afgenomen
D91: In 380/220/150 kV-netten | F91: 0
D92: In 70/36/30 kV-netten | F92: 0.0628
D93: Bij de uitgang van de transformaties naar Middenspanning | F93: 0.0628
C96: 6. Tarief voor openbare dienstverplichtingen voor de financiering van de steunmaatregelen voor hernieuwbare energie in Wallonië
F97: Eerste component | G97: Tweede component
F98: €/MWh netto afgenomen | G98: €/MWh netto afgenomen
D99: In 380/220/150 kV-netten | F99: 0 | G99: 0
D100: In 70/36/30 kV-netten | F100: 13.8159 | G100: 0
D101: Bij de uitgang van de transformaties naar Middenspanning | F101: 13.8159 | G101: 0
B103: F. Taksen en Toeslagen
C105: 1. Federale bijdrage
F106: €/MWh netto afgenomen
D107: In 380/220/150 kV-netten | F107: 3.47
D108: In 70/36/30 kV-netten | F108: 3.47
D109: Bij de uitgang van de transformaties naar Middenspanning | F109: 3.47
C112: 2. Toeslag voor het gebruik van het openbaar domein in Wallonië
F113: €/MWh netto afgenomen
D114: In 380/220/150 kV-netten | F114: 0
D115: In 70/36/30 kV-netten | F115: 0.3338
D116: Bij de uitgang van de transformaties naar Middenspanning | F116: 0.3338
C119: 3. Toeslag retributie wegenisrecht in Brussel
F120: €/MWh netto afgenomen
D121: In 380/220/150 kV-netten | F121: 3.5248
D122: In 70/36/30 kV-netten | F122: 3.5248
D123: Bij de uitgang van de transformaties naar Middenspanning | F123: 0
C126: 4. Toeslag voor de taksen “masten” en “sleuven” in Vlaanderen
F127: €/MWh netto afgenomen
D128: In 380/220/150 kV-netten | F128: 0.4445
D129: In 70/36/30 kV-netten | F129: 0.4445
D130: Bij de uitgang van de transformaties naar Middenspanning | F130: 0.4445
